Workbook

Sheet Welcome
C4: Welcome
A9: Wind farm CO2 estimator

Sheet Wind farm definition
B2: Wind farm definition
C4: Wind farm Definition
B6: Site
C8: Location | D8: Select | F8: Land type | G8: Select | I8: Length of new road required (km)
B14: Turbine Selection
C16: Turbine | D16: View | F16: =IF(D16="View","Select turbine to view",D16) -> Select turbine to view | I16: Enter number of turbines
F17: Power (MW) | G17: =IF(D16="View","",HLOOKUP($D$16,Worksheet!$E$51:$J$58,2,FALSE)) ->  | I17: Name | J17: Number of turbines
F18: Rotor diameter (m) | G18: =IF(D16="View","",HLOOKUP($D$16,Worksheet!$E$51:$J$58,3,FALSE)) ->  | I18: ='Gaia Wind 133 '!C4 -> Gaia Wind 133
F19: Rated speed m/s | G19: =IF(D16="View","",HLOOKUP($D$16,Worksheet!$E$51:$J$58,4,FALSE)) ->  | I19: ='Siemens G2'!C4 -> Siemens G2
F20: Design life (Years) | G20: =IF(D16="View","",HLOOKUP($D$16,Worksheet!$E$51:$J$58,5,FALSE)) ->  | I20: ='E- 126'!C4 -> E- 126
F21: Number of services (Yearly) | G21: =IF(D16="View","",HLOOKUP($D$16,Worksheet!$E$51:$J$58,6,FALSE)) -> 
F22: Country of Manufacture | G22: =IF(D16="View","",HLOOKUP($D$16,Worksheet!$E$51:$J$58,7,FALSE)) -> 
F23: Information | G23: =IF(D16="View","",HLOOKUP($D$16,Worksheet!$E$51:$J$58,8,FALSE)) -> 

Sheet Worksheet
B2: Supporting details | F2: Life cycle stages
C4: Worksheet
B5: Location Coordinates | F5: Materials & Manufacture | H5: kgCO2e | J5: Assembly & Installation | S5: kgCO2e | U5: Operations & Maintenance | X5: kgCO2e | Z5: Decommissioning & Disposal | AE5: kgCO2e
B6: Coordinates | C6: Latitude | D6: Longitude | F6: Turbine | G6: Number | J6: Crane CO2 per turbine | U6: Crane CO2 per turbine | Z6: Crane CO2 per turbine
B7: Canada- Tillsonburg | C7: 42.8667 | D7: -80.7333 | F7: ='Gaia Wind 133 '!C4 -> Gaia Wind 133 | G7: ='Wind farm definition'!J18 -> 0 | H7: ='Gaia Wind 133 '!C45*G7 -> 0 | J7: ='Gaia Wind 133 '!C4 -> Gaia Wind 133 | S7: =C32*'Gaia Wind 133 '!F11*G7 -> 0 | U7: ='Gaia Wind 133 '!C4 -> Gaia Wind 133 | X7: ='Gaia Wind 133 '!F12*Worksheet!$C$32*$G$7 -> 0 | Z7: ='Gaia Wind 133 '!C4 -> Gaia Wind 133 | AE7: ='Gaia Wind 133 '!$F$13*Worksheet!C32*Worksheet!$G$7 -> 0
B8: China- Shanghai | C8: 31.2 | D8: 121.5 | F8: ='Siemens G2'!C4 -> Siemens G2 | G8: ='Wind farm definition'!J19 -> 0 | H8: ='Siemens G2'!C45*G8 -> 0 | J8: ='Siemens G2'!C4 -> Siemens G2 | S8: =C32*'Siemens G2'!F11*G8 -> 0 | U8: ='Siemens G2'!C4 -> Siemens G2 | X8: ='Siemens G2'!F12*Worksheet!$C$32*$G$8 -> 0 | Z8: ='Siemens G2'!C4 -> Siemens G2 | AE8: ='Siemens G2'!$F$13*Worksheet!$C$32*Worksheet!$G$8 -> 0
B9: Denmark- Brande | C9: 55.95 | D9: 9.1167 | F9: ='E- 126'!C4 -> E- 126 | G9: ='Wind farm definition'!J20 -> 0 | H9: ='E- 126'!C45*G9 -> 0 | J9: ='E- 126'!C4 -> E- 126 | S9: =C32*'E- 126'!F11*G9 -> 0 | U9: ='E- 126'!C4 -> E- 126 | X9: ='E- 126'!F12*Worksheet!$C$32*$G$9 -> 0 | Z9: ='E- 126'!C4 -> E- 126 | AE9: ='E- 126'!$F$13*Worksheet!$C$32*Worksheet!$G$9 -> 0
B10: Kansas- Hutchinson | C10: 38.0608 | D10: -97.9297 | F10: Total | H10: =SUM(H7:H9) -> 0 | J10: Transport | U10: Total | X10: =IF(SUM(G7:G9)>=1,SUM(X7:X9)+C31,0) -> 0 | Z10: Disposal
B11: Portugal- Viana do Castelo | C11: 41.695 | D11: -8.83 | J11: Site | K11: Latitude | L11: Longitude | Z11: Disposal process | AA11: CO2 from process
B12: UK- Glasgow | C12: 55.858 | D12: -4.259 | J12: =IF('Wind farm definition'!$D$8=Worksheet!$B$13,'Wind farm definition'!$C$12,'Wind farm definition'!$D$8) -> 0 | K12: =IF('Wind farm definition'!$D$8=Worksheet!$B$13,'Wind farm definition'!$D$12,LOOKUP('Wind farm definition'!$D$8,Worksheet!$B$7:$B$14,Worksheet!$C$7:$C$14)) -> 0 | L12: =IF('Wind farm definition'!$D$8=Worksheet!$B$13,'Wind farm definition'!$E$12,LOOKUP('Wind farm definition'!D8,Worksheet!B7:B14,Worksheet!D7:D18)) -> 0 | AA12: kgCO2e/kg
B13: Select | K13: ='Gaia Wind 133 '!C4 -> Gaia Wind 133 | N13: ='Siemens G2'!C4 -> Siemens G2 | Q13: ='E- 126'!C4 -> E- 126 | Z13: Incineration | AA13: 0.1574
J14: Structure part | K14: Distance (km) | L14: Transport | M14: kgCO2e | N14: Distance (km) | O14: Transport | P14: kgCO2e | Q14: Distance (km) | R14: Transport | S14: kgCO2e | Z14: Landfill | AA14: 0
B15: Land | J15: Gearbox | K15: =ACOS(SIN($K$12)*SIN('Gaia Wind 133 '!$D32)+COS(Worksheet!$K$12)*COS('Gaia Wind 133 '!$D32)*COS('Gaia Wind 133 '!$E32-Worksheet!$L$12))*6371 -> 6343.205534 | L15: Select | M15: =IF(SUM($G$7:$G$9)>=1,('Gaia Wind 133 '!D18/1000)*K15*$G$7*LOOKUP(L15,$B$24:$B$26,$C$24:$C$26),0) -> 0 | N15: =ACOS(SIN($K$12)*SIN('Siemens G2'!$D32)+COS($K$12)*COS('Siemens G2'!$D32)*COS('Siemens G2'!$E32-$L$12))*6371 -> 15937.24368 | O15: Select | P15: =IF(SUM($G$7:$G$9)>=1,('Siemens G2'!D18/1000)*N15*$G$8*LOOKUP(O15,$B$24:$B$26,$C$24:$C$26),0) -> 0 | Q15: =ACOS(SIN($K$12)*SIN('E- 126'!$D32)+COS($K$12)*COS('E- 126'!$D32)*COS('E- 126'!$E32-$L$12))*6371 -> 15937.24368 | R15: Select | S15: =IF(SUM($G$7:$G$9)>=1,('E- 126'!A18/1000)*Q15*$G$9*LOOKUP(R15,$B$24:$B$26,$C$24:$C$26),0) -> 0 | Z15: Recycle | AA15: 0
B16: Type of Land | C16: Coefficient | J16: Chassis | K16: =ACOS(SIN($K$12)*SIN('Gaia Wind 133 '!$D33)+COS(Worksheet!$K$12)*COS('Gaia Wind 133 '!$D33)*COS('Gaia Wind 133 '!$E33-Worksheet!$L$12))*6371 -> 6343.205534 | L16: Select | M16: =IF(SUM($G$7:$G$9)>=1,('Gaia Wind 133 '!D19/1000)*K16*$G$7*LOOKUP(L16,$B$24:$B$26,$C$24:$C$26),0) -> 0 | N16: =ACOS(SIN($K$12)*SIN('Siemens G2'!$D33)+COS($K$12)*COS('Siemens G2'!$D33)*COS('Siemens G2'!$E33-$L$12))*6371 -> 15781.22865 | O16: Select | P16: =IF(SUM($G$7:$G$9)>=1,('Siemens G2'!D19/1000)*N16*$G$8*LOOKUP(O16,$B$24:$B$26,$C$24:$C$26),0) -> 0 | Q16: =ACOS(SIN($K$12)*SIN('E- 126'!$D33)+COS($K$12)*COS('E- 126'!$D33)*COS('E- 126'!$E33-$L$12))*6371 -> 15937.24368 | R16: Select | S16: =IF(SUM($G$7:$G$9)>=1,('E- 126'!A19/1000)*Q16*$G$9*LOOKUP(R16,$B$24:$B$26,$C$24:$C$26),0) -> 0 | Z16: Turbine part | AA16: Option | AB16: Total mass (kg)
B17: Agricultural Land | C17: 1 | J17: Generator | K17: =ACOS(SIN($K$12)*SIN('Gaia Wind 133 '!$D34)+COS(Worksheet!$K$12)*COS('Gaia Wind 133 '!$D34)*COS('Gaia Wind 133 '!$E34-Worksheet!$L$12))*6371 -> 6343.205534 | L17: Select | M17: =IF(SUM($G$7:$G$9)>=1,('Gaia Wind 133 '!D20/1000)*K17*$G$7*LOOKUP(L17,$B$24:$B$26,$C$24:$C$26),0) -> 0 | N17: =ACOS(SIN($K$12)*SIN('Siemens G2'!$D34)+COS($K$12)*COS('Siemens G2'!$D34)*COS('Siemens G2'!$E34-$L$12))*6371 -> 15937.24368 | O17: Select | P17: =IF(SUM($G$7:$G$9)>=1,('Siemens G2'!D20/1000)*N17*$G$8*LOOKUP(O17,$B$24:$B$26,$C$24:$C$26),0) -> 0 | Q17: =ACOS(SIN($K$12)*SIN('E- 126'!$D34)+COS($K$12)*COS('E- 126'!$D34)*COS('E- 126'!$E34-$L$12))*6371 -> 15937.24368 | R17: Select | S17: =IF(SUM($G$7:$G$9)>=1,('E- 126'!A20/1000)*Q17*$G$9*LOOKUP(R17,$B$24:$B$26,$C$24:$C$26),0) -> 0 | Z17: Gearbox | AA17: Landfill | AB17: =('Gaia Wind 133 '!D18*$G$7)+('Siemens G2'!D18*$G$8)+('E- 126'!D18*$G$9) -> 0 | AE17: =(LOOKUP(AA17,$Z$13:$Z$15,$AA$13:$AA$15)*AB17)+AC17 -> 0
B18: Industrial Site | C18: 0 | J18: Cover | K18: =ACOS(SIN($K$12)*SIN('Gaia Wind 133 '!$D35)+COS(Worksheet!$K$12)*COS('Gaia Wind 133 '!$D35)*COS('Gaia Wind 133 '!$E35-Worksheet!$L$12))*6371 -> 6343.205534 | L18: Select | M18: =IF(SUM($G$7:$G$9)>=1,('Gaia Wind 133 '!D21/1000)*K18*$G$7*LOOKUP(L18,$B$24:$B$26,$C$24:$C$26),0) -> 0 | N18: =ACOS(SIN($K$12)*SIN('Siemens G2'!$D35)+COS($K$12)*COS('Siemens G2'!$D35)*COS('Siemens G2'!$E35-$L$12))*6371 -> 15781.22865 | O18: Select | P18: =IF(SUM($G$7:$G$9)>=1,('Siemens G2'!D21/1000)*N18*$G$8*LOOKUP(O18,$B$24:$B$26,$C$24:$C$26),0) -> 0 | Q18: =ACOS(SIN($K$12)*SIN('E- 126'!$D35)+COS($K$12)*COS('E- 126'!$D35)*COS('E- 126'!$E35-$L$12))*6371 -> 15937.24368 | R18: Select | S18: =IF(SUM($G$7:$G$9)>=1,('E- 126'!A21/1000)*Q18*$G$9*LOOKUP(R18,$B$24:$B$26,$C$24:$C$26),0) -> 0 | Z18: Chassis | AA18: Landfill | AB18: =('Gaia Wind 133 '!D19*$G$7)+('Siemens G2'!D19*$G$8)+('E- 126'!D19*$G$9) -> 0 | AE18: =(LOOKUP(AA18,$Z$13:$Z$15,$AA$13:$AA$15)*AB18)+AC18 -> 0
B19: Moorland | C19: =AVERAGE('Gaia Wind 133 '!C10+'Siemens G2'!C10+'E- 126'!C10)*0.92*0.001 -> 0.0552 | J19: Blade | K19: =ACOS(SIN($K$12)*SIN('Gaia Wind 133 '!$D36)+COS(Worksheet!$K$12)*COS('Gaia Wind 133 '!$D36)*COS('Gaia Wind 133 '!$E36-Worksheet!$L$12))*6371 -> 6343.205534 | L19: Select | M19: =IF(SUM($G$7:$G$9)>=1,('Gaia Wind 133 '!D22/1000)*K19*$G$7*LOOKUP(L19,$B$24:$B$26,$C$24:$C$26),0) -> 0 | N19: =ACOS(SIN($K$12)*SIN('Siemens G2'!$D36)+COS($K$12)*COS('Siemens G2'!$D36)*COS('Siemens G2'!$E36-$L$12))*6371 -> 8355.519153 | O19: Select | P19: =IF(SUM($G$7:$G$9)>=1,('Siemens G2'!D22/1000)*N19*$G$8*LOOKUP(O19,$B$24:$B$26,$C$24:$C$26),0) -> 0 | Q19: =ACOS(SIN($K$12)*SIN('E- 126'!$D36)+COS($K$12)*COS('E- 126'!$D36)*COS('E- 126'!$E36-$L$12))*6371 -> 15937.24368 | R19: Select | S19: =IF(SUM($G$7:$G$9)>=1,('E- 126'!A22/1000)*Q19*$G$9*LOOKUP(R19,$B$24:$B$26,$C$24:$C$26),0) -> 0 | Z19: Generator | AA19: Landfill | AB19: =('Gaia Wind 133 '!D20*$G$7)+('Siemens G2'!D20*$G$8)+('E- 126'!D20*$G$9) -> 0 | AE19: 0
B20: Select | J20: Tower | K20: =ACOS(SIN($K$12)*SIN('Gaia Wind 133 '!$D37)+COS(Worksheet!$K$12)*COS('Gaia Wind 133 '!$D37)*COS('Gaia Wind 133 '!$E37-Worksheet!$L$12))*6371 -> 6343.205534 | L20: Select | M20: =IF(SUM($G$7:$G$9)>=1,('Gaia Wind 133 '!D23/1000)*K20*$G$7*LOOKUP(L20,$B$24:$B$26,$C$24:$C$26),0) -> 0 | N20: =ACOS(SIN($K$12)*SIN('Siemens G2'!$D37)+COS($K$12)*COS('Siemens G2'!$D37)*COS('Siemens G2'!$E37-$L$12))*6371 -> 15781.22865 | O20: Select | P20: =IF(SUM($G$7:$G$9)>=1,('Siemens G2'!D23/1000)*N20*$G$8*LOOKUP(O20,$B$24:$B$26,$C$24:$C$26),0) -> 0 | Q20: =ACOS(SIN($K$12)*SIN('E- 126'!$D37)+COS($K$12)*COS('E- 126'!$D37)*COS('E- 126'!$E37-$L$12))*6371 -> 15937.24368 | R20: Select | S20: =IF(SUM($G$7:$G$9)>=1,('E- 126'!A23/1000)*Q20*$G$9*LOOKUP(R20,$B$24:$B$26,$C$24:$C$26),0) -> 0 | Z20: Cover | AA20: Incineration | AB20: =('Gaia Wind 133 '!D21*$G$7)+('Siemens G2'!D21*$G$8)+('E- 126'!D21*$G$9) -> 0 | AE20: 0
J21: Base | K21: =ACOS(SIN($K$12)*SIN('Gaia Wind 133 '!$D38)+COS(Worksheet!$K$12)*COS('Gaia Wind 133 '!$D38)*COS('Gaia Wind 133 '!$E38-Worksheet!$L$12))*6371 -> 6343.205534 | L21: Select | M21: =IF(SUM($G$7:$G$9)>=1,('Gaia Wind 133 '!D25/1000)*K21*$G$7*LOOKUP(L21,$B$24:$B$26,$C$24:$C$26),0) -> 0 | N21: =ACOS(SIN($K$12)*SIN('Siemens G2'!$D38)+COS($K$12)*COS('Siemens G2'!$D38)*COS('Siemens G2'!$E38-$L$12))*6371 -> 15781.22865 | O21: Select | P21: =IF(SUM($G$7:$G$9)>=1,('Siemens G2'!D25/1000)*N21*$G$8*LOOKUP(O21,$B$24:$B$26,$C$24:$C$26),0) -> 0 | Q21: =ACOS(SIN($K$12)*SIN('E- 126'!$D38)+COS($K$12)*COS('E- 126'!$D38)*COS('E- 126'!$E38-$L$12))*6371 -> 15937.24368 | R21: Select | S21: =IF(SUM($G$7:$G$9)>=1,('E- 126'!A25/1000)*Q21*$G$9*LOOKUP(R21,$B$24:$B$26,$C$24:$C$26),0) -> 0 | Z21: Blade | AA21: Incineration | AB21: =('Gaia Wind 133 '!D22*$G$7)+('Siemens G2'!D22*$G$8)+('E- 126'!D22*$G$9) -> 0 | AE21: 0
B22: Transport | J22: Rebar | K22: =ACOS(SIN($K$12)*SIN('Gaia Wind 133 '!$D39)+COS(Worksheet!$K$12)*COS('Gaia Wind 133 '!$D39)*COS('Gaia Wind 133 '!$E39-Worksheet!$L$12))*6371 -> 6343.205534 | L22: Select | M22: =IF(SUM($G$7:$G$9)>=1,('Gaia Wind 133 '!D26/1000)*K22*$G$7*LOOKUP(L22,$B$24:$B$26,$C$24:$C$26),0) -> 0 | N22: =ACOS(SIN($K$12)*SIN('Siemens G2'!$D39)+COS($K$12)*COS('Siemens G2'!$D39)*COS('Siemens G2'!$E39-$L$12))*6371 -> 15781.22865 | O22: Select | P22: =IF(SUM($G$7:$G$9)>=1,('Siemens G2'!D26/1000)*N22*$G$8*LOOKUP(O22,$B$24:$B$26,$C$24:$C$26),0) -> 0 | Q22: =ACOS(SIN($K$12)*SIN('E- 126'!$D39)+COS($K$12)*COS('E- 126'!$D39)*COS('E- 126'!$E39-$L$12))*6371 -> 15937.24368 | R22: Select | S22: =IF(SUM($G$7:$G$9)>=1,('E- 126'!A26/1000)*Q22*$G$9*LOOKUP(R22,$B$24:$B$26,$C$24:$C$26),0) -> 0 | Z22: Tower | AA22: Recycle | AB22: =('Gaia Wind 133 '!D23*$G$7)+('Siemens G2'!D23*$G$8)+('E- 126'!D23*$G$9) -> 0 | AE22: 0
B23: Mode of Transport | C23: kgCO2e/ton of freight/km | J23: Cable | K23: =ACOS(SIN($K$12)*SIN('Gaia Wind 133 '!$D40)+COS(Worksheet!$K$12)*COS('Gaia Wind 133 '!$D40)*COS('Gaia Wind 133 '!$E40-Worksheet!$L$12))*6371 -> 6343.205534 | L23: Select | M23: =IF(SUM($G$7:$G$9)>=1,('Gaia Wind 133 '!D27/1000)*K23*$G$7*LOOKUP(L23,$B$24:$B$26,$C$24:$C$26),0) -> 0 | N23: =ACOS(SIN($K$12)*SIN('Siemens G2'!$D40)+COS($K$12)*COS('Siemens G2'!$D40)*COS('Siemens G2'!$E40-$L$12))*6371 -> 15781.22865 | O23: Select | P23: =IF(SUM($G$7:$G$9)>=1,('Siemens G2'!D27/1000)*N23*$G$8*LOOKUP(O23,$B$24:$B$26,$C$24:$C$26),0) -> 0 | Q23: =ACOS(SIN($K$12)*SIN('E- 126'!$D40)+COS($K$12)*COS('E- 126'!$D40)*COS('E- 126'!$E40-$L$12))*6371 -> 15937.24368 | R23: Select | S23: =IF(SUM($G$7:$G$9)>=1,('E- 126'!A27/1000)*Q23*$G$9*LOOKUP(R23,$B$24:$B$26,$C$24:$C$26),0) -> 0 | Z23: Base | AA23: Recycle | AB23: =('Gaia Wind 133 '!D25*$G$7)+('Siemens G2'!D25*$G$8)+('E- 126'!D25*$G$9) -> 0 | AE23: 0
B24: Lorry | C24: 0.15 | J24: Total Transport | S24: =SUM(P15:P23)+SUM(M15:M23)+SUM(S15:S23) -> 0 | Z24: Rebar | AA24: Recycle | AB24: =('Gaia Wind 133 '!D26*$G$7)+('Siemens G2'!D26*$G$8)+('E- 126'!D26*$G$9) -> 0 | AE24: 0
B25: Plane | C25: 0.5 | J25: Road | Z25: Cable | AA25: Recycle | AB25: =('Gaia Wind 133 '!D27*$G$7)+('Siemens G2'!D27*$G$8)+('E- 126'!D27*$G$9) -> 0 | AE25: 0
B26: Ship | C26: 0.04 | J26: Details | Z26: Travel
B27: Select | J27: Width (m) | K27: 12.192 | L27: Density of concrete kg/m^3 | N27: 2400 | Z27: Disposal Process | AB27: Distance travelled (km) | AC27: Transport | AD27: Mass (kg)
B28: Crane details | J28: Depth (m) | K28: 0.25 | L28: Concrete kgCO2e/kg | N28: 0.47 | Z28: Landfill | AB28: 50 | AC28: Lorry | AD28: =IF($Z28=$AA$17,$AB$17,0)+IF($Z28=$AA$18,$AB$18,0)+IF($Z28=$AA$19,$AB$19,0)+IF($Z28=$AA$20,$AB$20,0)+IF($Z28=$AA$21,$AB$21,0)+IF($Z28=$AA$22,$AB$22,0)+IF($Z28=$AA$23,AB$23,0)+IF($Z28=$AA$24,$AB$24,0)+IF($Z28=$AA$25,$AB$25,0) -> 0 | AE28: =IF(SUM(G7:G9)>=1,LOOKUP(AC28,$B$24:$B$26,$C$24:$C$26)*AB28*AD28/1000,0) -> 0
B29: Distance to site (km) | C29: 50 | J29: Volume (m^3) | K29: =($K$27)*($K$28)*'Wind farm definition'!$J$8*1000 -> 0 | L29: Road kgCO2e | N29: =IF('Wind farm definition'!$G$8="Industrial Site",0,$N28*$K30) -> 0 | Z29: Recycle | AB29: 100 | AC29: Lorry | AD29: =IF($Z29=$AA$17,$AB$17,0)+IF($Z29=$AA$18,$AB$18,0)+IF($Z29=$AA$19,$AB$19,0)+IF($Z29=$AA$20,$AB$20,0)+IF($Z29=$AA$21,$AB$21,0)+IF($Z29=$AA$22,$AB$22,0)+IF($Z29=$AA$23,AB$23,0)+IF($Z29=$AA$24,$AB$24,0)+IF($Z29=$AA$25,$AB$25,0) -> 0 | AE29: =IF(SUM(G7:G9)>=1,LOOKUP(AC29,$B$24:$B$26,$C$24:$C$26)*AB29*AD29/1000,0) -> 0
B30: Freight weight of crane (kg) | C30: 51000 | J30: Mass (kg) | K30: =K29*$N$27 -> 0 | L30: Land type kgCO2e | N30: =(LOOKUP('Wind farm definition'!$G$8,Worksheet!B17:B19,Worksheet!C17:C19))*$N$29 -> 0 | S30: =N29+N30 -> 0 | Z30: Incineration | AB30: 50 | AC30: Lorry | AD30: 0 | AE30: =IF(SUM(G7:G9)>=1,LOOKUP(AC30,$B$24:$B$26,$C$24:$C$26)*AB30*AD30/1000,0) -> 0
B31: kgCO2e | C31: =$C$24*($C$30/100)*($C$29*2) -> 7650 | G31: Move along to view the other life cycle stages | J31: Total | S31: =IF(SUM(G7:G9)>=1,SUM($S$7:$S$9)+$S$24+$S$30+$C$31,0) -> 0 | Z31: Total | AE31: =IF(SUM(G7:G9)>=1,SUM(AE17:AE25)+SUM(AE7:AE9)+SUM(AE28:AE30)+C31,0) -> 0
B32: kgCO2e per hour for plant equipment | C32: 5
B34: Details of calculation for energy production per year
B35: Air density (kg/m^3) | C35: 1.21
B38: Velocity Exceedance curve approximated by equation
B41: where V∞ is the wind speed (m/s) and T the number of days
B42: in a typical year when the mean wind speed exceeds V∞
B43: Alter:
B44: 𝑉∞ 𝑇^0.5 = | C44: 60
G50: List of turbines in database
G51: View | H51: ='Gaia Wind 133 '!C4 -> Gaia Wind 133 | I51: ='Siemens G2'!C4 -> Siemens G2 | J51: ='E- 126'!C4 -> E- 126
G52: Power (MW) | H52: ='Gaia Wind 133 '!C5 -> 0.011 | I52: ='Siemens G2'!C5 -> 2.3 | J52: ='E- 126'!C5 -> 7.58
G53: Rotor diameter (m) | H53: ='Gaia Wind 133 '!C6 -> 13 | I53: ='Siemens G2'!C6 -> 101 | J53: ='E- 126'!C6 -> 127
G54: Rated speed m/s | H54: ='Gaia Wind 133 '!C7 -> 10 | I54: ='Siemens G2'!C7 -> 12.5 | J54: ='E- 126'!C7 -> 10
G55: Design life (Years) | H55: ='Gaia Wind 133 '!C10 -> 20 | I55: ='Siemens G2'!C10 -> 20 | J55: ='E- 126'!C10 -> 20
G56: Number of services (Yearly) | H56: ='Gaia Wind 133 '!C11 -> 1 | I56: ='Siemens G2'!C11 -> 1 | J56: ='E- 126'!C11 -> 1
G57: Country of Manufacture | H57: ='Gaia Wind 133 '!C12 -> UK | I57: ='Siemens G2'!C12 -> Denmark | J57: ='E- 126'!C12 -> Portugal
G58: Information | H58: ='Gaia Wind 133 '!C13 -> http://www.gaia-wind.com/133-11kw-turbine/ | I58: ='Siemens G2'!C13 -> http://www.energy.siemens.com/nl/en/renewable-energy/wind-power/platforms/g2-platform/ | J58: ='E- 126'!C13 -> http://www.enercon.de/en-en/66.htm

Sheet Carbon appraisal result
B1: Carbon appraisal
C2: Carbon Appraisal Result
F28: Summary (kgCO2e)
F29: =Worksheet!F5 -> Materials & Manufacture | G29: =Worksheet!J5 -> Assembly & Installation | H29: =Worksheet!U5 -> Operations & Maintenance | I29: =Worksheet!Z5 -> Decommissioning & Disposal
F30: =Worksheet!H10 -> 0 | G30: =Worksheet!S31 -> 0 | H30: =Worksheet!X10 -> 0 | I30: =Worksheet!AE31 -> 0
G32: Carbon appraisal breakdown
G33: Total CO2 produced (kgCO2e) | H33: =SUM(Worksheet!H10+Worksheet!S31+Worksheet!X10+Worksheet!AE31) -> 0
G34: CO2 per year running (kgCO2e) | H34: =Worksheet!X10 -> 0
G35: Total energy produced in a year MWh | H35: ='Gaia Wind 133 '!C9*Worksheet!G7+'Siemens G2'!C9*Worksheet!G8+'E- 126'!C9*Worksheet!G9 -> 0
G36: kgCO2e/MWh for a year | H36: =IF(H34=0,0,H34/H35) -> 0
G37: kgCO2e/MWh Cradle to Grave | H37: =IF(H33=0,0,H33/(H35*(AVERAGE('Gaia Wind 133 '!C10,'Siemens G2'!C10,'E- 126'!C10)))) -> 0
G39: kgCO2e/MWh from burning coal | H39: 9797

Sheet Gaia Wind 133
B2: =C4 -> Gaia Wind 133
C4: Gaia Wind 133 | E4: Additional Information
B5: Power (MW) | C5: 0.011 | E5: IEC Class | F5: III (means suitable for sites with an annual average wind speed up to 7.5m/s)
B6: Rotor diameter (m) | C6: 13 | E6: Cut in wind speed (m/s) | F6: 3.5
B7: Rated speed (m/s) | C7: 10 | E7: Cut out wind speed (m/s) | F7: 25
B8: Power coefficient | C8: 0.42 | E8: Blade length | F8: =C6/2 -> 6.5
B9: Yearly energy production (MWh) | C9: =D54/1000000 -> 62.32876794 | E9: Swept area (m^2) | F9: =POWER(C6,2)*0.25*3.14 -> 132.665
B10: Design life (Years) | C10: 20 | E10: Tower height (m) | F10: 18.3
B11: Number of services (Yearly) | C11: 1 | E11: Hours equipment in use for turbine construction | F11: 12
B12: Country of Manufacture | C12: UK | E12: Hours equipment in use for turbine maintenance | F12: 6
B13: Information | C13: http://www.gaia-wind.com/133-11kw-turbine/ | E13: Hours equipment in use for turbine decommission | F13: 12
B15: Embodied CO2 of Materials Manufacture
B17: Turbine part | C17: Typical Material | D17: Typical Weight (kg) | E17: kgCO2e/kg | F17: kgCO2e
B18: Gearbox | C18: Steel | D18: 75 | E18: 0.47 | F18: =D18*E18 -> 35.25
B19: Chassis | C19: Steel | D19: 590 | E19: 0.47 | F19: =D19*E19 -> 277.3
B20: Generator | C20: Copper | D20: 150 | E20: 2.71 | F20: 406.5
B21: Cover | C21: Fibreglass | D21: 10 | E21: 1.54 | F21: 15.4
B22: Blade | C22: Fibreglass | D22: 200 | E22: 1.54 | F22: 308
B23: Tower | C23: Steel | D23: 2300 | E23: 0.47 | F23: 1081
B24: Foundation
B25: Base | C25: Concrete | D25: 49500 | E25: 0.47 | F25: =D25*E25 -> 23265
B26: Rebar | C26: Steel | D26: 810 | E26: 0.47 | F26: =D26*E26 -> 380.7
B27: Cable | C27: Copper | D27: 572 | E27: 2.71 | F27: 1550.12
B29: Manufacturer
B31: Turbine part | C31: Manufacturer | D31: Latitude | E31: Longitude
B32: Gearbox | C32: UK - Glasgow | D32: =LOOKUP(C32,Worksheet!$B$7:$B$14,Worksheet!$C$7:$C$14) -> 41.695 | E32: =LOOKUP(C32,Worksheet!$B$7:$B$14,Worksheet!$D$7:$D$18) -> -8.83
B33: Chassis | C33: UK - Glasgow | D33: =LOOKUP(C33,Worksheet!$B$7:$B$14,Worksheet!$C$7:$C$14) -> 41.695 | E33: =LOOKUP(C33,Worksheet!$B$7:$B$14,Worksheet!$D$7:$D$18) -> -8.83
B34: Generator | C34: UK - Glasgow | D34: =LOOKUP(C34,Worksheet!$B$7:$B$14,Worksheet!$C$7:$C$14) -> 41.695 | E34: =LOOKUP(C34,Worksheet!$B$7:$B$14,Worksheet!$D$7:$D$18) -> -8.83
B35: Cover | C35: UK - Glasgow | D35: =LOOKUP(C35,Worksheet!$B$7:$B$14,Worksheet!$C$7:$C$14) -> 41.695 | E35: =LOOKUP(C35,Worksheet!$B$7:$B$14,Worksheet!$D$7:$D$18) -> -8.83
B36: Blade | C36: UK - Glasgow | D36: =LOOKUP(C36,Worksheet!$B$7:$B$14,Worksheet!$C$7:$C$14) -> 41.695 | E36: =LOOKUP(C36,Worksheet!$B$7:$B$14,Worksheet!$D$7:$D$18) -> -8.83
B37: Tower | C37: UK - Glasgow | D37: =LOOKUP(C37,Worksheet!$B$7:$B$14,Worksheet!$C$7:$C$14) -> 41.695 | E37: =LOOKUP(C37,Worksheet!$B$7:$B$14,Worksheet!$D$7:$D$18) -> -8.83
B38: Base | C38: UK - Glasgow | D38: =LOOKUP(C38,Worksheet!$B$7:$B$14,Worksheet!$C$7:$C$14) -> 41.695 | E38: =LOOKUP(C38,Worksheet!$B$7:$B$14,Worksheet!$D$7:$D$18) -> -8.83
B39: Rebar | C39: UK - Glasgow | D39: =LOOKUP(C39,Worksheet!$B$7:$B$14,Worksheet!$C$7:$C$14) -> 41.695 | E39: =LOOKUP(C39,Worksheet!$B$7:$B$14,Worksheet!$D$7:$D$18) -> -8.83
B40: Cable | C40: UK - Glasgow | D40: =LOOKUP(C40,Worksheet!$B$7:$B$14,Worksheet!$C$7:$C$14) -> 41.695 | E40: =LOOKUP(C40,Worksheet!$B$7:$B$14,Worksheet!$D$7:$D$18) -> -8.83
B42: Embodied CO2 of Materials & Manufacture
C44: kgCO2e
B45: Total Turbine | C45: =SUM(F18:F23)+SUM(F25:F27) -> 27319.27
B47: Energy per year
C49: Speed (m/s) | D49: T (Days) | E49: Power (W)
B50: Cut In | C50: =F6 -> 3.5 | D50: =POWER(Worksheet!$C$44/C50,2) -> 293.877551
B51: Rated speed | C51: =C7 -> 10 | D51: =POWER(Worksheet!$C$44/C51,2) -> 36 | E51: =Worksheet!$C$35*0.5*$C$8*$F$9*POWER(C51,3) -> 33710.1765
B52: Cut out | C52: =F7 -> 25 | D52: =POWER(Worksheet!$C$44/C52,2) -> 5.76
C54: Energy (Wh) | D54: =(E51*(D51-D52)+(C8*0.5*F9*Worksheet!$C$35*POWER(60,3)*(-2)*((1/SQRT(D50)-(1/SQRT(D51))))))*24 -> 62328767.94

Sheet Siemens G2
B2: =C4 -> Siemens G2
B4: Name of turbine | C4: Siemens G2 | E4: Additional Information
B5: Power (MW) | C5: 2.3 | E5: IEC Class | F5: IIB (means suitable for sites with an annual average wind speed up to 8.5m/s)
B6: Rotor diameter (m) | C6: 101 | E6: Cut in wind speed (m/s) | F6: 3.5
B7: Rated speed m/s | C7: 12.5 | E7: Cut out wind speed (m/s) | F7: 25
B8: Power coefficient | C8: 0.3 | E8: Blade length | F8: 49
B9: Yearly energy production (MWh) | C9: =D54/1000000 -> 3437.612374 | E9: Swept area (m^2) | F9: =POWER(C6,2)*0.25*3.14 -> 8007.785
B10: Design life (Years) | C10: 20 | E10: Hub height (m) | F10: 80 or site specific
B11: Number of services (Yearly) | C11: 1 | E11: Hours equipment in use for turbine construction | F11: 24
B12: Country of Manufacture | C12: Denmark | E12: Hours equipment in use for turbine maintenance | F12: 6
B13: Information | C13: http://www.energy.siemens.com/nl/en/renewable-energy/wind-power/platforms/g2-platform/ | E13: Hours equipment in use for turbine decommission | F13: 24
B15: Embodied CO2 of Materials Manufacture
B17: Turbine part | C17: Typical Material | D17: Typical Weight (kg) | E17: kgCO2e/kg | F17: kgCO2e
B18: Gearbox | C18: Steel | D18: 112.5 | E18: 0.47 | F18: =D18*E18 -> 52.875
B19: Chassis | C19: Steel | D19: 4583.846154 | E19: 0.47 | F19: =D19*E19 -> 2154.407692
B20: Generator | C20: Copper | D20: 1165.384615 | E20: 2.71 | F20: 3158.192308
B21: Cover | C21: Fibreglass | D21: 15 | E21: 1.54 | F21: 23.1
B22: Blade | C22: Fibreglass | D22: 1553.846154 | E22: 1.54 | F22: 2392.923077
B23: Tower | C23: Steel | D23: 162000 | E23: 0.47 | F23: 76140
B24: Foundation
B25: Base | C25: Concrete | D25: 384576.9231 | E25: 0.47 | F25: =D25*E25 -> 180751.1538
B26: Rebar | C26: Steel | D26: 6293.076923 | E26: 0.47 | F26: =D26*E26 -> 2957.746154
B27: Cable | C27: Copper | D27: 4444 | E27: 2.71 | F27: 12043.24
B29: Manufacturer
B31: Turbine part | C31: Manufacturer | D31: Latitude | E31: Longitude
B32: Gearbox | C32: Kansas- Hutchinson | D32: =LOOKUP(C32,Worksheet!$B$7:$B$14,Worksheet!$C$7:$C$14) -> 38.0608 | E32: =LOOKUP(C32,Worksheet!$B$7:$B$14,Worksheet!$D$7:$D$18) -> -97.9297
B33: Chassis | C33: Denmark- Brande | D33: =LOOKUP(C33,Worksheet!$B$7:$B$14,Worksheet!$C$7:$C$14) -> 55.95 | E33: =LOOKUP(C33,Worksheet!$B$7:$B$14,Worksheet!$D$7:$D$18) -> 9.1167
B34: Generator | C34: Kansas- Hutchinson | D34: =LOOKUP(C34,Worksheet!$B$7:$B$14,Worksheet!$C$7:$C$14) -> 38.0608 | E34: =LOOKUP(C34,Worksheet!$B$7:$B$14,Worksheet!$D$7:$D$18) -> -97.9297
B35: Cover | C35: Kansas - Hutchinson | D35: =LOOKUP(C35,Worksheet!$B$7:$B$14,Worksheet!$C$7:$C$14) -> 55.95 | E35: =LOOKUP(C35,Worksheet!$B$7:$B$14,Worksheet!$D$7:$D$18) -> 9.1167
B36: Blade | C36: Canada- Tillsonburg | D36: =LOOKUP(C36,Worksheet!$B$7:$B$14,Worksheet!$C$7:$C$14) -> 42.8667 | E36: =LOOKUP(C36,Worksheet!$B$7:$B$14,Worksheet!$D$7:$D$18) -> -80.7333
B37: Tower | C37: Denmark- Brande | D37: =LOOKUP(C37,Worksheet!$B$7:$B$14,Worksheet!$C$7:$C$14) -> 55.95 | E37: =LOOKUP(C37,Worksheet!$B$7:$B$14,Worksheet!$D$7:$D$18) -> 9.1167
B38: Base | C38: Denmark- Brande | D38: =LOOKUP(C38,Worksheet!$B$7:$B$14,Worksheet!$C$7:$C$14) -> 55.95 | E38: =LOOKUP(C38,Worksheet!$B$7:$B$14,Worksheet!$D$7:$D$18) -> 9.1167
B39: Rebar | C39: Denmark- Brande | D39: =LOOKUP(C39,Worksheet!$B$7:$B$14,Worksheet!$C$7:$C$14) -> 55.95 | E39: =LOOKUP(C39,Worksheet!$B$7:$B$14,Worksheet!$D$7:$D$18) -> 9.1167
B40: Cable | C40: Denmark- Brande | D40: =LOOKUP(C40,Worksheet!$B$7:$B$14,Worksheet!$C$7:$C$14) -> 55.95 | E40: =LOOKUP(C40,Worksheet!$B$7:$B$14,Worksheet!$D$7:$D$18) -> 9.1167
B42: Embodied CO2 of Materials & Manufacture
C44: kgCO2e
B45: Total Turbine | C45: =SUM(F18:F23)+SUM(F25:F27) -> 279673.6381
B47: Energy per year
C49: Speed (m/s) | D49: T (Days) | E49: Power (W)
B50: Cut In | C50: =F6 -> 3.5 | D50: =POWER(Worksheet!$C$44/C50,2) -> 293.877551
B51: Rated speed | C51: =C7 -> 12.5 | D51: =POWER(Worksheet!$C$44/C51,2) -> 23.04 | E51: =Worksheet!$C$35*0.5*$C$8*$F$9*POWER(C51,3) -> 2838697.222
B52: Cut out | C52: =F7 -> 25 | D52: =POWER(Worksheet!$C$44/C52,2) -> 5.76
C54: Energy (Wh) | D54: =(E51*(D51-D52)+(C8*0.5*F9*Worksheet!$C$35*POWER(60,3)*(-2)*((1/SQRT(D50)-(1/SQRT(D51))))))*24 -> 3437612374

Sheet E- 126
B2: =C4 -> E- 126
B4: Name of turbine | C4: E- 126 | E4: Additional Information
B5: Power (MW) | C5: 7.58 | E5: IEC Class | F5: IA (means suitable for sites with an annual average wind speed up to 10m/s)
B6: Rotor diameter (m) | C6: 127 | E6: Cut in wind speed (m/s) | F6: 3
B7: Rated speed m/s | C7: 10 | E7: Cut out wind speed (m/s) | F7: 34
B8: Power coefficient | C8: 0.199 | E8: Blade length
B9: Yearly energy production (MWh) | C9: =D54/1000000 -> 3046.967498 | E9: Swept area (m^2) | F9: =POWER(C6,2)*0.25*3.14 -> 12661.265
B10: Design life (Years) | C10: 20 | E10: Hub height (m) | F10: 135
B11: Number of services (Yearly) | C11: 1 | E11: Hours equipment in use for turbine construction | F11: 30
B12: Country of Manufacture | C12: Portugal | E12: Hours equipment in use for turbine maintenance | F12: 6
B13: Information | C13: http://www.enercon.de/en-en/66.htm | E13: Hours equipment in use for turbine decommission | F13: 30
B15: Embodied CO2 of Materials Manufacture
B17: Turbine part | C17: Typical Material | D17: Typical Weight (kg) | E17: kgCO2e/kg | F17: kgCO2e
B18: Gearbox | C18: Steel | D18: 150 | E18: 0.47 | F18: =D18*E18 -> 70.5
B19: Chassis | C19: Steel | D19: 128000 | E19: 0.47 | F19: =D19*E19 -> 60160
B20: Generator | C20: Copper | D20: 220000 | E20: 2.71 | F20: 596200
B21: Cover | C21: Fibreglass | D21: 20 | E21: 1.54 | F21: 30.8
B22: Blade | C22: Fibreglass | D22: 364000 | E22: 1.54 | F22: 560560
B23: Tower | C23: Concrete | D23: 22469.23077 | E23: 0.47 | F23: 10560.53846
B24: Foundation
B25: Base | C25: Concrete | D25: 2500000 | E25: 0.47 | F25: =D25*E25 -> 1175000
B26: Rebar | C26: Steel | D26: 7913.076923 | E26: 0.47 | F26: =D26*E26 -> 3719.146154
B27: Cable | C27: Copper | D27: 5588 | E27: 2.71 | F27: 15143.48
B29: Manufacturer
B31: Turbine part | C31: Manufacturer | D31: Latitude | E31: Longitude
B32: Gearbox | C32: Portugal - Viana do Castelo | D32: =LOOKUP(C32,Worksheet!$B$7:$B$14,Worksheet!$C$7:$C$14) -> 38.0608 | E32: =LOOKUP(C32,Worksheet!$B$7:$B$14,Worksheet!$D$7:$D$18) -> -97.9297
B33: Chassis | C33: Portugal - Viana do Castelo | D33: =LOOKUP(C33,Worksheet!$B$7:$B$14,Worksheet!$C$7:$C$14) -> 38.0608 | E33: =LOOKUP(C33,Worksheet!$B$7:$B$14,Worksheet!$D$7:$D$18) -> -97.9297
B34: Generator | C34: Portugal - Viana do Castelo | D34: =LOOKUP(C34,Worksheet!$B$7:$B$14,Worksheet!$C$7:$C$14) -> 38.0608 | E34: =LOOKUP(C34,Worksheet!$B$7:$B$14,Worksheet!$D$7:$D$18) -> -97.9297
B35: Cover | C35: Portugal - Viana do Castelo | D35: =LOOKUP(C35,Worksheet!$B$7:$B$14,Worksheet!$C$7:$C$14) -> 38.0608 | E35: =LOOKUP(C35,Worksheet!$B$7:$B$14,Worksheet!$D$7:$D$18) -> -97.9297
B36: Blade | C36: Portugal - Viana do Castelo | D36: =LOOKUP(C36,Worksheet!$B$7:$B$14,Worksheet!$C$7:$C$14) -> 38.0608 | E36: =LOOKUP(C36,Worksheet!$B$7:$B$14,Worksheet!$D$7:$D$18) -> -97.9297
B37: Tower | C37: Portugal - Viana do Castelo | D37: =LOOKUP(C37,Worksheet!$B$7:$B$14,Worksheet!$C$7:$C$14) -> 38.0608 | E37: =LOOKUP(C37,Worksheet!$B$7:$B$14,Worksheet!$D$7:$D$18) -> -97.9297
B38: Base | C38: Portugal - Viana do Castelo | D38: =LOOKUP(C38,Worksheet!$B$7:$B$14,Worksheet!$C$7:$C$14) -> 38.0608 | E38: =LOOKUP(C38,Worksheet!$B$7:$B$14,Worksheet!$D$7:$D$18) -> -97.9297
B39: Rebar | C39: Portugal - Viana do Castelo | D39: =LOOKUP(C39,Worksheet!$B$7:$B$14,Worksheet!$C$7:$C$14) -> 38.0608 | E39: =LOOKUP(C39,Worksheet!$B$7:$B$14,Worksheet!$D$7:$D$18) -> -97.9297
B40: Cable | C40: Portugal - Viana do Castelo | D40: =LOOKUP(C40,Worksheet!$B$7:$B$14,Worksheet!$C$7:$C$14) -> 38.0608 | E40: =LOOKUP(C40,Worksheet!$B$7:$B$14,Worksheet!$D$7:$D$18) -> -97.9297
B42: Embodied CO2 of Materials & Manufacture
C44: kgCO2e
B45: Total Turbine | C45: =SUM(F18:F23)+SUM(F25:F27) -> 2421444.465
B47: Energy per year
C49: Speed (m/s) | D49: T (Days) | E49: Power (W)
B50: Cut In | C50: =F6 -> 3 | D50: =POWER(Worksheet!$C$44/C50,2) -> 400
B51: Rated speed | C51: =C7 -> 10 | D51: =POWER(Worksheet!$C$44/C51,2) -> 36 | E51: =Worksheet!$C$35*0.5*$C$8*$F$9*POWER(C51,3) -> 1524353
B52: Cut out | C52: =F7 -> 34 | D52: =POWER(Worksheet!$C$44/C52,2) -> 3.114186851
C54: Energy (Wh) | D54: =(E51*(D51-D52)+(C8*0.5*F9*Worksheet!$C$35*POWER(60,3)*(-2)*((1/SQRT(D50)-(1/SQRT(D51))))))*24 -> 3046967498
